[Event "*** Titled Tuesday Blitz"]
[Site "Chess.com"]
[Date "2021.04.06"]
[Round "1"]
[White "Vincent_Vega95"]
[Black "SHIVACalypso"]
[Result "1/2-1/2"]
[WhiteElo "2704"]
[BlackElo "2395"]
[TimeControl "180+1"]
[EndTime "10:08:01 PDT"]
[Termination "Game drawn by repetition"]

1. d4 {[%clk 0:02:57.5]} 1... Nf6 {[%clk 0:02:58.2]} 2. c4 {[%clk 0:02:56.6]}
2... e6 {[%clk 0:02:57.5]} 3. Nc3 {[%clk 0:02:56.5]} 3... Bb4 {[%clk 0:02:56.2]}
4. e3 {[%clk 0:02:57.1]} 4... O-O {[%clk 0:02:53.5]} 5. Ne2 {[%clk 0:02:57.7]}
5... c6 {[%clk 0:02:51.5]} 6. a3 {[%clk 0:02:58.2]} 6... Ba5 {[%clk 0:02:51.5]}
7. b4 {[%clk 0:02:58.9]} 7... Bc7 {[%clk 0:02:51.1]} 8. e4 {[%clk 0:02:59.6]}
8... d5 {[%clk 0:02:51.4]} 9. e5 {[%clk 0:03:00]} 9... Nfd7 {[%clk 0:02:49.2]}
10. Nf4 {[%clk 0:02:58.7]} 10... a5 {[%clk 0:02:36.8]} 11. Rb1 {[%clk
0:02:58.6]} 11... axb4 {[%clk 0:02:32.7]} 12. axb4 {[%clk 0:02:59.5]} 12... c5
{[%clk 0:02:33.3]} 13. bxc5 {[%clk 0:02:58.2]} 13... Ba5 {[%clk 0:02:14.3]} 14.
Bd2 {[%clk 0:02:55.7]} 14... Nc6 {[%clk 0:02:13.9]} 15. Nb5 {[%clk 0:02:40.7]}
15... dxc4 {[%clk 0:01:38.7]} 16. Bxc4 {[%clk 0:02:39.7]} 16... Nxd4 {[%clk
0:01:37.2]} 17. Nxd4 {[%clk 0:02:09]} 17... Nxe5 {[%clk 0:01:37]} 18. Nb3 {[%clk
0:01:35.1]} 18... Nxc4 {[%clk 0:01:29]} 19. Bxa5 {[%clk 0:01:35.6]} 19... Nxa5
{[%clk 0:01:21.7]} 20. Qxd8 {[%clk 0:01:36.1]} 20... Rxd8 {[%clk 0:01:22]} 21.
Ra1 {[%clk 0:01:36.3]} 21... e5 {[%clk 0:01:21.2]} 22. Ne2 {[%clk 0:01:29.3]}
22... Be6 {[%clk 0:00:37]} 23. Nxa5 {[%clk 0:01:28.2]} 23... Ra6 {[%clk
0:00:37.6]} 24. O-O {[%clk 0:00:34.6]} 24... Rda8 {[%clk 0:00:36.4]} 25. Rfb1
{[%clk 0:00:28.1]} 25... Rxa5 {[%clk 0:00:32.3]} 26. Rxa5 {[%clk 0:00:27.5]}
26... Rxa5 {[%clk 0:00:33]} 27. c6 {[%clk 0:00:28.1]} 27... Bd5 {[%clk
0:00:25.8]} 28. c7 {[%clk 0:00:20.2]} 28... Rc5 {[%clk 0:00:25.5]} 29. Rc1
{[%clk 0:00:20.6]} 29... Rxc1+ {[%clk 0:00:22.1]} 30. Nxc1 {[%clk 0:00:21.5]}
30... Be6 {[%clk 0:00:22.9]} 31. Nd3 {[%clk 0:00:22.1]} 31... Kf8 {[%clk
0:00:16.2]} 32. Nc5 {[%clk 0:00:22.5]} 32... Ke7 {[%clk 0:00:15.7]} 33. Nxe6
{[%clk 0:00:21.4]} 33... Kd7 {[%clk 0:00:14.6]} 34. Nxg7 {[%clk 0:00:21.6]}
34... Kxc7 {[%clk 0:00:14.7]} 35. Kf1 {[%clk 0:00:22.1]} 35... b5 {[%clk
0:00:14.3]} 36. Ke2 {[%clk 0:00:22.6]} 36... b4 {[%clk 0:00:14.8]} 37. Kd2
{[%clk 0:00:23.1]} 37... Kc6 {[%clk 0:00:15.3]} 38. Kc2 {[%clk 0:00:23.1]} 38...
Kc5 {[%clk 0:00:15.4]} 39. Nf5 {[%clk 0:00:21.8]} 39... Kc4 {[%clk 0:00:14.3]}
40. Ne3+ {[%clk 0:00:22.1]} 40... Kd4 {[%clk 0:00:14.6]} 41. Kb3 {[%clk
0:00:19.8]} 41... Kd3 {[%clk 0:00:14.7]} 42. Kxb4 {[%clk 0:00:19.2]} 42... Ke2
{[%clk 0:00:15.3]} 43. Ng4 {[%clk 0:00:18.4]} 43... f5 {[%clk 0:00:15.3]} 44.
Nxe5 {[%clk 0:00:18.6]} 44... Kxf2 {[%clk 0:00:15.9]} 45. h4 {[%clk 0:00:05.4]}
45... Kxg2 {[%clk 0:00:15.7]} 46. Kc4 {[%clk 0:00:04.8]} 46... Kg3 {[%clk
0:00:15.4]} 47. h5 {[%clk 0:00:05]} 47... Kh4 {[%clk 0:00:14.7]} 48. h6 {[%clk
0:00:05.3]} 48... Kg5 {[%clk 0:00:14.9]} 49. Kd4 {[%clk 0:00:04.6]} 49... Kxh6
{[%clk 0:00:14.8]} 50. Ke3 {[%clk 0:00:05.3]} 50... Kg5 {[%clk 0:00:15.4]} 51.
Kf3 {[%clk 0:00:05.8]} 51... h5 {[%clk 0:00:15.3]} 52. Nd3 {[%clk 0:00:06]}
52... h4 {[%clk 0:00:14.2]} 53. Nf2 {[%clk 0:00:06.7]} 53... Kh5 {[%clk
0:00:14.1]} 54. Nh3 {[%clk 0:00:07.3]} 54... Kg6 {[%clk 0:00:13.8]} 55. Kf4
{[%clk 0:00:08.2]} 55... Kf6 {[%clk 0:00:14.4]} 56. Nf2 {[%clk 0:00:08.7]} 56...
Kg6 {[%clk 0:00:14.9]} 57. Nh3 {[%clk 0:00:09.6]} 57... Kh5 {[%clk 0:00:14.5]}
58. Nf2 {[%clk 0:00:10.5]} 58... Kg6 {[%clk 0:00:14.8]} 59. Nh3 {[%clk
0:00:11.3]} 1/2-1/2

[Event "*** Titled Tuesday Blitz"]
[Site "Chess.com"]
[Date "2021.04.06"]
[Round "1"]
[White "mr65"]
[Black "Stormeman100100"]
[Result "0-1"]
[WhiteElo "2140"]
[BlackElo "2519"]
[TimeControl "180+1"]
[EndTime "10:08:01 PDT"]
[Termination "Stormeman100100 won on time"]

1. e4 {[%clk 0:02:56.6]} 1... e5 {[%clk 0:02:57.6]} 2. Nf3 {[%clk 0:02:55.9]}
2... Nc6 {[%clk 0:02:56.8]} 3. Bb5 {[%clk 0:02:55.6]} 3... Nf6 {[%clk
0:02:55.8]} 4. d3 {[%clk 0:02:54.6]} 4... Bc5 {[%clk 0:02:53.8]} 5. O-O {[%clk
0:02:52.6]} 5... Nd4 {[%clk 0:02:50.2]} 6. Nxd4 {[%clk 0:02:51.3]} 6... Bxd4
{[%clk 0:02:51.1]} 7. c3 {[%clk 0:02:48.7]} 7... Bb6 {[%clk 0:02:50.6]} 8. Bg5
{[%clk 0:02:43.6]} 8... c6 {[%clk 0:02:48.5]} 9. Ba4 {[%clk 0:02:38.9]} 9... h6
{[%clk 0:02:40.8]} 10. Bh4 {[%clk 0:02:38.1]} 10... g5 {[%clk 0:02:38.9]} 11.
Bg3 {[%clk 0:02:37.7]} 11... d6 {[%clk 0:02:38.8]} 12. d4 {[%clk 0:02:34.4]}
12... Nxe4 {[%clk 0:02:32.9]} 13. dxe5 {[%clk 0:02:33.5]} 13... Nxg3 {[%clk
0:02:32.4]} 14. hxg3 {[%clk 0:02:32.4]} 14... dxe5 {[%clk 0:02:32.9]} 15. Qxd8+
{[%clk 0:02:30.9]} 15... Kxd8 {[%clk 0:02:33]} 16. Bb3 {[%clk 0:02:27]} 16...
Ke7 {[%clk 0:02:32.6]} 17. Nd2 {[%clk 0:02:26.5]} 17... f6 {[%clk 0:02:32]} 18.
a4 {[%clk 0:02:17.6]} 18... a5 {[%clk 0:02:20.2]} 19. Nc4 {[%clk 0:02:08]} 19...
Bc7 {[%clk 0:02:19.7]} 20. Bc2 {[%clk 0:02:04.2]} 20... f5 {[%clk 0:02:17.1]}
21. Rfe1 {[%clk 0:02:00.4]} 21... Kf6 {[%clk 0:02:16.5]} 22. Rad1 {[%clk
0:01:53.1]} 22... Be6 {[%clk 0:02:15.1]} 23. Nd6 {[%clk 0:01:48.8]} 23... Rhd8
{[%clk 0:02:07.9]} 24. Nxb7 {[%clk 0:01:41.9]} 24... Rxd1 {[%clk 0:02:06.2]} 25.
Bxd1 {[%clk 0:01:30.3]} 25... Rb8 {[%clk 0:01:56.4]} 26. Nc5 {[%clk 0:01:29.4]}
26... Rxb2 {[%clk 0:01:55.6]} 27. Nxe6 {[%clk 0:01:26.7]} 27... Kxe6 {[%clk
0:01:55.4]} 28. g4 {[%clk 0:01:18]} 28... Bb6 {[%clk 0:01:50.2]} 29. Be2 {[%clk
0:01:09.8]} 29... e4 {[%clk 0:01:43.2]} 30. Bc4+ {[%clk 0:00:54.6]} 30... Ke5
{[%clk 0:01:42.7]} 31. Re2 {[%clk 0:00:54]} 31... Rb1+ {[%clk 0:01:37.9]} 32.
Kh2 {[%clk 0:00:53.6]} 32... fxg4 {[%clk 0:01:31]} 33. Bd3 {[%clk 0:00:50.5]}
33... Rb3 {[%clk 0:01:02]} 34. Bxe4 {[%clk 0:00:47.1]} 34... Rxc3 {[%clk
0:00:59.5]} 35. Bxc6+ {[%clk 0:00:45.9]} 35... Kf6 {[%clk 0:00:55.3]} 36. Bb5
{[%clk 0:00:44.6]} 36... h5 {[%clk 0:00:54.1]} 37. g3 {[%clk 0:00:38.6]} 37...
h4 {[%clk 0:00:47.4]} 38. Bd7 {[%clk 0:00:38.4]} 38... Rc4 {[%clk 0:00:44.4]}
39. Re6+ {[%clk 0:00:37.1]} 39... Kf7 {[%clk 0:00:44.7]} 40. Rxb6 {[%clk
0:00:36.8]} 40... Rc2 {[%clk 0:00:45]} 41. Kg2 {[%clk 0:00:34.7]} 41... h3+
{[%clk 0:00:44.4]} 42. Kg1 {[%clk 0:00:32.6]} 42... Rc1+ {[%clk 0:00:41.3]} 43.
Kh2 {[%clk 0:00:31.1]} 43... Rf1 {[%clk 0:00:41]} 44. Bxg4 {[%clk 0:00:28.2]}
44... Rxf2+ {[%clk 0:00:41.2]} 45. Kxh3 {[%clk 0:00:25.4]} 45... Ra2 {[%clk
0:00:41.9]} 46. Bd7 {[%clk 0:00:23]} 46... Ke7 {[%clk 0:00:42.2]} 47. Bb5 {[%clk
0:00:22.5]} 47... Kf7 {[%clk 0:00:41.9]} 48. Kg4 {[%clk 0:00:20.9]} 48... Rd2
{[%clk 0:00:40.7]} 49. Ra6 {[%clk 0:00:20.3]} 49... Rd5 {[%clk 0:00:41.6]} 50.
Rxa5 {[%clk 0:00:18.6]} 50... Kf6 {[%clk 0:00:42.3]} 51. Ra6+ {[%clk 0:00:17]}
51... Ke5 {[%clk 0:00:42.8]} 52. Rg6 {[%clk 0:00:16]} 52... Kd4 {[%clk
0:00:41.8]} 53. Rxg5 {[%clk 0:00:14.1]} 53... Rd8 {[%clk 0:00:42.7]} 54. Rg7
{[%clk 0:00:11]} 54... Ke4 {[%clk 0:00:42.5]} 55. Kh5 {[%clk 0:00:10.2]} 55...
Kf5 {[%clk 0:00:41.7]} 56. Rf7+ {[%clk 0:00:09.3]} 56... Ke6 {[%clk 0:00:41.7]}
57. Bc4+ {[%clk 0:00:09.1]} 57... Ke5 {[%clk 0:00:41.7]} 58. g4 {[%clk
0:00:06.6]} 58... Rd4 {[%clk 0:00:40]} 59. g5 {[%clk 0:00:03.6]} 59... Rxc4
{[%clk 0:00:38.7]} 0-1

[Event "*** Titled Tuesday Blitz"]
[Site "Chess.com"]
[Date "2021.04.06"]
[Round "1"]
[White "Fandorine"]
[Black "Das_Virus_2020"]
[Result "1/2-1/2"]
[WhiteElo "2895"]
[BlackElo "2465"]
[TimeControl "180+1"]
[EndTime "10:08:07 PDT"]
[Termination "Game drawn by repetition"]

1. Nf3 {[%clk 0:03:00.9]} 1... Nf6 {[%clk 0:02:58.4]} 2. g3 {[%clk 0:02:58.6]}
2... g6 {[%clk 0:02:56.4]} 3. Bg2 {[%clk 0:02:58.8]} 3... Bg7 {[%clk 0:02:56.8]}
4. O-O {[%clk 0:02:59.7]} 4... O-O {[%clk 0:02:57.3]} 5. d3 {[%clk 0:02:59.3]}
5... d5 {[%clk 0:02:55.1]} 6. Nbd2 {[%clk 0:02:58.9]} 6... c6 {[%clk 0:02:55.1]}
7. e4 {[%clk 0:02:59]} 7... Bg4 {[%clk 0:02:34.3]} 8. h3 {[%clk 0:02:57.8]} 8...
Bxf3 {[%clk 0:02:34]} 9. Qxf3 {[%clk 0:02:58.7]} 9... e5 {[%clk 0:02:30.1]} 10.
Qe2 {[%clk 0:02:57.4]} 10... Nbd7 {[%clk 0:02:29.1]} 11. a4 {[%clk 0:02:54.8]}
11... Qc7 {[%clk 0:02:18.6]} 12. a5 {[%clk 0:02:46.7]} 12... a6 {[%clk
0:02:12.3]} 13. c3 {[%clk 0:02:45.4]} 13... Rfe8 {[%clk 0:02:10]} 14. b4 {[%clk
0:02:39.3]} 14... Rad8 {[%clk 0:02:07.2]} 15. Nb3 {[%clk 0:02:31.9]} 15... dxe4
{[%clk 0:02:00.4]} 16. dxe4 {[%clk 0:02:31.3]} 16... c5 {[%clk 0:02:00.6]} 17.
Rb1 {[%clk 0:02:25.2]} 17... Rc8 {[%clk 0:01:46.5]} 18. Be3 {[%clk 0:02:18.3]}
18... cxb4 {[%clk 0:01:44.4]} 19. cxb4 {[%clk 0:02:18.2]} 19... Qc2 {[%clk
0:01:43.8]} 20. Rfe1 {[%clk 0:02:07.5]} 20... Qxe2 {[%clk 0:01:39.4]} 21. Rxe2
{[%clk 0:02:07.5]} 21... Rc3 {[%clk 0:01:37.5]} 22. Nc5 {[%clk 0:01:35.9]} 22...
Nxc5 {[%clk 0:01:36.5]} 23. bxc5 {[%clk 0:01:34.2]} 23... Bf8 {[%clk 0:01:17.4]}
24. Rb6 {[%clk 0:01:14.8]} 24... Nd7 {[%clk 0:01:12.6]} 25. Rxb7 {[%clk
0:01:14.6]} 25... Nxc5 {[%clk 0:01:08.2]} 26. Ra7 {[%clk 0:01:04.4]} 26... Ra3
{[%clk 0:01:00.2]} 27. h4 {[%clk 0:00:45.9]} 27... h5 {[%clk 0:00:44.8]} 28. Rc2
{[%clk 0:00:44.9]} 28... Rxa5 {[%clk 0:00:44.1]} 29. Bf3 {[%clk 0:00:33.8]}
29... Ne6 {[%clk 0:00:39]} 30. Rd7 {[%clk 0:00:28.4]} 30... Ra4 {[%clk
0:00:24.6]} 31. Rb7 {[%clk 0:00:18.1]} 31... Nd4 {[%clk 0:00:23.5]} 32. Bxd4
{[%clk 0:00:18.5]} 32... Rxd4 {[%clk 0:00:14.2]} 33. Rcc7 {[%clk 0:00:18.5]}
33... a5 {[%clk 0:00:14.5]} 34. Rxf7 {[%clk 0:00:16.3]} 34... a4 {[%clk
0:00:14.7]} 35. Rf6 {[%clk 0:00:16.4]} 35... Rd6 {[%clk 0:00:12.8]} 36. Rff7
{[%clk 0:00:06.4]} 36... a3 {[%clk 0:00:11.4]} 37. Ra7 {[%clk 0:00:06.7]} 37...
Rd2 {[%clk 0:00:08.3]} 38. Rfc7 {[%clk 0:00:06.1]} 38... a2 {[%clk 0:00:08.2]}
39. Kg2 {[%clk 0:00:06.1]} 39... Rb2 {[%clk 0:00:08]} 40. g4 {[%clk 0:00:05.4]}
40... Re7 {[%clk 0:00:06]} 41. Rxe7 {[%clk 0:00:04]} 41... Bxe7 {[%clk 0:00:06]}
42. gxh5 {[%clk 0:00:04.3]} 42... gxh5 {[%clk 0:00:06.4]} 43. Bxh5 {[%clk
0:00:03.8]} 43... Bxh4 {[%clk 0:00:06.8]} 44. Bf7+ {[%clk 0:00:03.6]} 44... Kh8
{[%clk 0:00:07]} 45. Rxa2 {[%clk 0:00:04.5]} 45... Rxa2 {[%clk 0:00:06.4]} 46.
Bxa2 {[%clk 0:00:05.4]} 46... Kg7 {[%clk 0:00:06.6]} 47. Kf3 {[%clk 0:00:06.3]}
47... Bg5 {[%clk 0:00:06.7]} 48. Bd5 {[%clk 0:00:07.2]} 48... Bf4 {[%clk
0:00:07.4]} 49. Kg4 {[%clk 0:00:08.1]} 49... Kf6 {[%clk 0:00:07.9]} 50. Bc6
{[%clk 0:00:07.7]} 50... Bd2 {[%clk 0:00:08.3]} 51. Bd7 {[%clk 0:00:08.1]} 51...
Bf4 {[%clk 0:00:09.2]} 52. Bf5 {[%clk 0:00:09]} 52... Bd2 {[%clk 0:00:09.6]} 53.
Kh5 {[%clk 0:00:09.5]} 53... Bf4 {[%clk 0:00:10.5]} 54. f3 {[%clk 0:00:10]}
54... Bd2 {[%clk 0:00:11.3]} 55. Bg4 {[%clk 0:00:10]} 55... Bf4 {[%clk
0:00:12.2]} 56. Kh4 {[%clk 0:00:10.5]} 56... Be3 {[%clk 0:00:13.1]} 57. Kh3
{[%clk 0:00:11.4]} 57... Bf4 {[%clk 0:00:14]} 58. Kg2 {[%clk 0:00:12.3]} 58...
Be3 {[%clk 0:00:14.9]} 59. Kf1 {[%clk 0:00:12.7]} 59... Bf4 {[%clk 0:00:15.8]}
60. Ke2 {[%clk 0:00:13.6]} 60... Bg5 {[%clk 0:00:16.4]} 61. Kd3 {[%clk
0:00:14.5]} 61... Bf4 {[%clk 0:00:17.2]} 62. Kc4 {[%clk 0:00:15.4]} 62... Bg5
{[%clk 0:00:17.7]} 63. Kd5 {[%clk 0:00:16.3]} 63... Bf4 {[%clk 0:00:18.5]} 64.
Kc4 {[%clk 0:00:17.2]} 64... Bg5 {[%clk 0:00:19]} 65. Kd5 {[%clk 0:00:18.1]}
65... Bf4 {[%clk 0:00:19.6]} 66. Kc4 {[%clk 0:00:19]} 1/2-1/2

[Event "*** Titled Tuesday Blitz"]
[Site "Chess.com"]
[Date "2021.04.06"]
[Round "1"]
[White "Vyacheslav_N"]
[Black "RobertoJBM"]
[Result "0-1"]
[WhiteElo "2388"]
[BlackElo "2715"]
[TimeControl "180+1"]
[EndTime "10:08:07 PDT"]
[Termination "RobertoJBM won on time"]

1. e4 {[%clk 0:02:54.1]} 1... c6 {[%clk 0:02:58.9]} 2. d4 {[%clk 0:02:54.1]}
2... d5 {[%clk 0:02:59.8]} 3. Nd2 {[%clk 0:02:54.4]} 3... dxe4 {[%clk
0:02:59.7]} 4. Nxe4 {[%clk 0:02:55.3]} 4... Nd7 {[%clk 0:02:59.6]} 5. Nf3 {[%clk
0:02:54.1]} 5... Ngf6 {[%clk 0:02:57.2]} 6. Nxf6+ {[%clk 0:02:54.5]} 6... Nxf6
{[%clk 0:02:58.1]} 7. c3 {[%clk 0:02:55]} 7... Bg4 {[%clk 0:02:56.1]} 8. Be2
{[%clk 0:02:55.4]} 8... e6 {[%clk 0:02:55.6]} 9. Ne5 {[%clk 0:02:55.4]} 9...
Bxe2 {[%clk 0:02:55.2]} 10. Qxe2 {[%clk 0:02:56.3]} 10... Be7 {[%clk 0:02:55.4]}
11. O-O {[%clk 0:02:56.2]} 11... O-O {[%clk 0:02:55.3]} 12. Rd1 {[%clk
0:02:55.5]} 12... Nd7 {[%clk 0:02:51.4]} 13. Nxd7 {[%clk 0:02:46.9]} 13... Qxd7
{[%clk 0:02:52.3]} 14. Bf4 {[%clk 0:02:46.5]} 14... Rfd8 {[%clk 0:02:49.3]} 15.
Rac1 {[%clk 0:02:29.3]} 15... Qd5 {[%clk 0:02:46.7]} 16. a3 {[%clk 0:02:27.8]}
16... Rd7 {[%clk 0:02:42.4]} 17. Rd2 {[%clk 0:02:23.3]} 17... Rad8 {[%clk
0:02:39.7]} 18. Rcd1 {[%clk 0:02:23.7]} 18... Bf6 {[%clk 0:02:30.7]} 19. h3
{[%clk 0:02:19.7]} 19... g6 {[%clk 0:02:26.2]} 20. g4 {[%clk 0:02:12.7]} 20...
b5 {[%clk 0:02:08.5]} 21. f3 {[%clk 0:02:05.6]} 21... a5 {[%clk 0:02:03.4]} 22.
Kg2 {[%clk 0:02:03.7]} 22... Bg5 {[%clk 0:01:52.5]} 23. Qe3 {[%clk 0:01:50.7]}
23... Bxf4 {[%clk 0:01:50.9]} 24. Qxf4 {[%clk 0:01:51.6]} 24... b4 {[%clk
0:01:39.1]} 25. axb4 {[%clk 0:01:46.3]} 25... axb4 {[%clk 0:01:40]} 26. Qe4
{[%clk 0:01:46.7]} 26... Qb5 {[%clk 0:01:28]} 27. f4 {[%clk 0:01:28]} 27... bxc3
{[%clk 0:01:26.8]} 28. bxc3 {[%clk 0:01:28.9]} 28... Qc4 {[%clk 0:01:19.6]} 29.
Qd3 {[%clk 0:01:26.9]} 29... Qd5+ {[%clk 0:01:18.3]} 30. Qf3 {[%clk 0:01:23.4]}
30... Qa5 {[%clk 0:01:13.7]} 31. Re2 {[%clk 0:01:16.7]} 31... c5 {[%clk
0:01:10.1]} 32. Re5 {[%clk 0:01:15.6]} 32... Qa2+ {[%clk 0:01:05.6]} 33. Re2
{[%clk 0:00:51.4]} 33... Qa4 {[%clk 0:01:00.1]} 34. Re4 {[%clk 0:00:34.8]} 34...
cxd4 {[%clk 0:00:57]} 35. f5 {[%clk 0:00:26.1]} 35... exf5 {[%clk 0:00:50.4]}
36. gxf5 {[%clk 0:00:26.2]} 36... Qc2+ {[%clk 0:00:49]} 37. Kg3 {[%clk
0:00:14.6]} 37... Qxc3 {[%clk 0:00:36.6]} 38. Rd3 {[%clk 0:00:14]} 38... Qc1
{[%clk 0:00:28.2]} 39. fxg6 {[%clk 0:00:13.3]} 39... hxg6 {[%clk 0:00:20.5]} 40.
h4 {[%clk 0:00:13]} 40... Rd5 {[%clk 0:00:18.9]} 41. Rf4 {[%clk 0:00:12]} 41...
Qg1+ {[%clk 0:00:17.3]} 42. Kh3 {[%clk 0:00:12.2]} 42... Qe1 {[%clk 0:00:16]}
43. Qg4 {[%clk 0:00:07.7]} 43... Qe5 {[%clk 0:00:11.9]} 44. Rg3 {[%clk
0:00:04.3]} 44... Qh5 {[%clk 0:00:08]} 45. Qxh5 {[%clk 0:00:01.2]} 45... Rxh5
{[%clk 0:00:08.9]} 46. Rd3 {[%clk 0:00:01.9]} 46... Rhd5 {[%clk 0:00:08.8]} 47.
Kg4 {[%clk 0:00:02.6]} 47... Kg7 {[%clk 0:00:09.3]} 48. Kf3 {[%clk 0:00:02.9]}
48... R8d7 {[%clk 0:00:09.8]} 49. Ke4 {[%clk 0:00:03.3]} 49... f5+ {[%clk
0:00:10.3]} 50. Kf3 {[%clk 0:00:03.6]} 50... Kf6 {[%clk 0:00:11.2]} 51. Kg3
{[%clk 0:00:04]} 51... R5d6 {[%clk 0:00:11.7]} 52. Rff3 {[%clk 0:00:04.2]} 52...
Ke5 {[%clk 0:00:11.8]} 53. Rf2 {[%clk 0:00:04.4]} 53... Ke4 {[%clk 0:00:11.9]}
54. Ra3 {[%clk 0:00:02.1]} 54... Ke5 {[%clk 0:00:11.2]} 0-1

[Event "*** Titled Tuesday Blitz"]
[Site "Chess.com"]
[Date "2021.04.06"]
[Round "1"]
[White "Rondo_Capriccioso"]
[Black "Alexander_Zubov"]
[Result "1/2-1/2"]
[WhiteElo "2482"]
[BlackElo "2988"]
[TimeControl "180+1"]
[EndTime "10:08:09 PDT"]
[Termination "Game drawn - insufficient material"]

1. e4 {[%clk 0:02:57.6]} 1... c5 {[%clk 0:02:57.2]} 2. Nf3 {[%clk 0:02:57.8]}
2... e6 {[%clk 0:02:56.7]} 3. d4 {[%clk 0:02:58.1]} 3... cxd4 {[%clk 0:02:57.1]}
4. Nxd4 {[%clk 0:02:59]} 4... a6 {[%clk 0:02:57.6]} 5. Bd3 {[%clk 0:02:59.1]}
5... Bc5 {[%clk 0:02:54.9]} 6. Nb3 {[%clk 0:02:59.3]} 6... Be7 {[%clk
0:02:55.1]} 7. Qg4 {[%clk 0:02:59.5]} 7... g6 {[%clk 0:02:55.1]} 8. Qe2 {[%clk
0:02:55.2]} 8... d6 {[%clk 0:02:54.7]} 9. c4 {[%clk 0:02:54.7]} 9... Nc6 {[%clk
0:02:53.2]} 10. Nc3 {[%clk 0:02:54.1]} 10... Ne5 {[%clk 0:02:53]} 11. Bc2 {[%clk
0:02:42.2]} 11... Qc7 {[%clk 0:02:51.4]} 12. Nd2 {[%clk 0:02:40.6]} 12... Nf6
{[%clk 0:02:49]} 13. O-O {[%clk 0:02:39]} 13... O-O {[%clk 0:02:45.9]} 14. f4
{[%clk 0:02:39]} 14... Ned7 {[%clk 0:02:36.6]} 15. b3 {[%clk 0:02:07.1]} 15...
b5 {[%clk 0:02:30]} 16. Bb2 {[%clk 0:02:05.7]} 16... Bb7 {[%clk 0:02:19.1]} 17.
Rac1 {[%clk 0:01:51.1]} 17... b4 {[%clk 0:02:10.6]} 18. Nd1 {[%clk 0:01:36.1]}
18... Nc5 {[%clk 0:01:59.1]} 19. Nf2 {[%clk 0:01:29.2]} 19... a5 {[%clk
0:01:44]} 20. e5 {[%clk 0:01:17.8]} 20... dxe5 {[%clk 0:01:41.3]} 21. Bxe5
{[%clk 0:01:16.9]} 21... Qb6 {[%clk 0:01:39.8]} 22. Kh1 {[%clk 0:01:14.1]} 22...
Rad8 {[%clk 0:01:34.9]} 23. Rcd1 {[%clk 0:00:56.2]} 23... Qc6 {[%clk 0:01:18.6]}
24. Nf3 {[%clk 0:00:36.7]} 24... Rd7 {[%clk 0:01:08]} 25. Rxd7 {[%clk
0:00:35.5]} 25... Ncxd7 {[%clk 0:01:06.4]} 26. Bb2 {[%clk 0:00:32.6]} 26... Rd8
{[%clk 0:00:51.8]} 27. Rd1 {[%clk 0:00:32.7]} 27... Qc7 {[%clk 0:00:48.9]} 28.
Ne5 {[%clk 0:00:31.1]} 28... Nc5 {[%clk 0:00:48.5]} 29. Rxd8+ {[%clk 0:00:23]}
29... Qxd8 {[%clk 0:00:48.6]} 30. Kg1 {[%clk 0:00:21.4]} 30... Qa8 {[%clk
0:00:35.4]} 31. g4 {[%clk 0:00:20.2]} 31... Nfe4 {[%clk 0:00:33]} 32. g5 {[%clk
0:00:18.3]} 32... Nxf2 {[%clk 0:00:30.9]} 33. Qxf2 {[%clk 0:00:18.9]} 33... a4
{[%clk 0:00:29.2]} 34. Qd4 {[%clk 0:00:18.6]} 34... Qd8 {[%clk 0:00:17]} 35. Nd7
{[%clk 0:00:15.3]} 35... f6 {[%clk 0:00:13.4]} 36. gxf6 {[%clk 0:00:12.3]} 36...
Qxd7 {[%clk 0:00:12.2]} 37. fxe7 {[%clk 0:00:12.9]} 37... Qxe7 {[%clk
0:00:11.3]} 38. Qh8+ {[%clk 0:00:12.9]} 38... Kf7 {[%clk 0:00:11.9]} 39. Qxh7+
{[%clk 0:00:12.4]} 39... Ke8 {[%clk 0:00:12.4]} 40. Bxg6+ {[%clk 0:00:13]} 40...
Kd7 {[%clk 0:00:12.9]} 41. Qxe7+ {[%clk 0:00:11.4]} 41... Kxe7 {[%clk
0:00:13.8]} 42. Bd4 {[%clk 0:00:11.4]} 42... Ne4 {[%clk 0:00:13.7]} 43. Bxe4
{[%clk 0:00:10.8]} 43... Bxe4 {[%clk 0:00:14.6]} 44. bxa4 {[%clk 0:00:10.9]}
44... Bd3 {[%clk 0:00:14.6]} 45. c5 {[%clk 0:00:10.5]} 45... Bc4 {[%clk
0:00:14.8]} 46. c6 {[%clk 0:00:10.9]} 46... Kd6 {[%clk 0:00:14.9]} 47. a5 {[%clk
0:00:10.2]} 47... Kxc6 {[%clk 0:00:14]} 48. h4 {[%clk 0:00:10.6]} 48... Bxa2
{[%clk 0:00:14.2]} 49. h5 {[%clk 0:00:11.2]} 49... Bb1 {[%clk 0:00:14.6]} 50. h6
{[%clk 0:00:11]} 50... Kb5 {[%clk 0:00:15.1]} 51. Kf2 {[%clk 0:00:07]} 51...
Kxa5 {[%clk 0:00:15.4]} 52. Kg3 {[%clk 0:00:07.6]} 52... Kb5 {[%clk 0:00:15.9]}
53. Kh4 {[%clk 0:00:08.2]} 53... Kc4 {[%clk 0:00:16.5]} 54. Be5 {[%clk
0:00:08.2]} 54... Bf5 {[%clk 0:00:12.2]} 55. Kg5 {[%clk 0:00:08.6]} 55... Kd3
{[%clk 0:00:12.9]} 56. Kf6 {[%clk 0:00:09.4]} 56... Ke4 {[%clk 0:00:13.5]} 57.
Kg7 {[%clk 0:00:09.7]} 57... b3 {[%clk 0:00:14.1]} 58. h7 {[%clk 0:00:07.8]}
58... Bxh7 {[%clk 0:00:14.3]} 59. Kxh7 {[%clk 0:00:08.7]} 59... b2 {[%clk
0:00:14.8]} 60. Bxb2 {[%clk 0:00:08.9]} 60... Kxf4 {[%clk 0:00:15.5]} 61. Kg7
{[%clk 0:00:09.1]} 61... e5 {[%clk 0:00:16.4]} 62. Bxe5+ {[%clk 0:00:08.1]}
1/2-1/2